[Event "Late-Titled-Tuesday-Blitz-June-25-2024"]
[Site "Chess.com"]
[Date "2024.06.25"]
[Round "4"]
[White "Defenstrator"]
[Black "Zura_19"]
[Result "0-1"]
[WhiteElo "2422"]
[BlackElo "2618"]
[TimeControl "180+1"]
[EndTime "14:37:18 PDT"]
[Termination "Zura_19 won by resignation"]

1. e4 {[%clk 0:03:00.5]} 1... c6 {[%clk 0:02:58.3]} 2. d4 {[%clk 0:03:00.7]}
2... d5 {[%clk 0:02:58.9]} 3. e5 {[%clk 0:02:58.6]} 3... Bf5 {[%clk 0:02:58.4]}
4. h4 {[%clk 0:02:58.4]} 4... h5 {[%clk 0:02:58.1]} 5. Bg5 {[%clk 0:02:58.4]}
5... Qa5+ {[%clk 0:02:54.1]} 6. Nc3 {[%clk 0:02:56.3]} 6... e6 {[%clk
0:02:52.7]} 7. Bd3 {[%clk 0:02:48.5]} 7... Bxd3 {[%clk 0:02:52.3]} 8. Qxd3
{[%clk 0:02:48.8]} 8... c5 {[%clk 0:02:44.6]} 9. dxc5 {[%clk 0:02:45.3]} 9...
Nc6 {[%clk 0:02:41.5]} 10. Nf3 {[%clk 0:02:40.4]} 10... Bxc5 {[%clk 0:02:33.7]}
11. O-O {[%clk 0:02:32.4]} 11... Bb4 {[%clk 0:01:54.3]} 12. Nb5 {[%clk
0:02:31.2]} 12... a6 {[%clk 0:01:47.6]} 13. Nd6+ {[%clk 0:02:01.4]} 13... Bxd6
{[%clk 0:01:46]} 14. exd6 {[%clk 0:01:57]} 14... Nf6 {[%clk 0:01:43]} 15. Nd4
{[%clk 0:01:48.9]} 15... Ne4 {[%clk 0:01:37.3]} 16. Rfe1 {[%clk 0:01:35.9]}
16... Qb6 {[%clk 0:01:09.1]} 17. Nxc6 {[%clk 0:01:18.5]} 17... Qxc6 {[%clk
0:00:50.7]} 18. Bf4 {[%clk 0:01:11.4]} 18... Nxd6 {[%clk 0:00:38.4]} 19. Qd4
{[%clk 0:01:08]} 19... Nf5 {[%clk 0:00:37.1]} 20. Qb4 {[%clk 0:01:05.1]} 20...
Rc8 {[%clk 0:00:33.4]} 21. Rac1 {[%clk 0:01:04.2]} 21... b5 {[%clk 0:00:32.1]}
22. Be5 {[%clk 0:00:56]} 22... Qc4 {[%clk 0:00:29.5]} 23. Qa5 {[%clk 0:00:53.4]}
23... Qxh4 {[%clk 0:00:20.4]} 24. Qxa6 {[%clk 0:00:51.5]} 24... O-O {[%clk
0:00:17.3]} 25. Qxb5 {[%clk 0:00:51.7]} 25... Rc4 {[%clk 0:00:15.7]} 26. a4
{[%clk 0:00:36.1]} 26... Rxa4 {[%clk 0:00:14.7]} 27. Ra1 {[%clk 0:00:33.4]}
27... Rg4 {[%clk 0:00:13.9]} 28. Ra3 {[%clk 0:00:32.2]} 28... Qg5 {[%clk
0:00:13.8]} 29. Qf1 {[%clk 0:00:20.7]} 29... Qg6 {[%clk 0:00:13.9]} 30. f3
{[%clk 0:00:18.7]} 30... Rc4 {[%clk 0:00:13]} 31. c3 {[%clk 0:00:17.5]} 31... h4
{[%clk 0:00:13]} 32. Kh1 {[%clk 0:00:13.3]} 32... Ng3+ {[%clk 0:00:12.4]} 33.
Bxg3 {[%clk 0:00:13.1]} 33... hxg3 {[%clk 0:00:13.3]} 34. Kg1 {[%clk 0:00:03.1]}
34... Qh7 {[%clk 0:00:12.5]} 35. Qe2 {[%clk 0:00:02]} 35... Qh2+ {[%clk
0:00:12.5]} 0-1

[Event "Late-Titled-Tuesday-Blitz-June-25-2024"]
[Site "Chess.com"]
[Date "2024.06.25"]
[Round "4"]
[White "Malev212"]
[Black "MatthewG-p4p"]
[Result "0-1"]
[WhiteElo "2605"]
[BlackElo "2918"]
[TimeControl "180+1"]
[EndTime "14:37:20 PDT"]
[Termination "MatthewG-p4p won on time"]

1. e4 {[%clk 0:03:00.9]} 1... e6 {[%clk 0:02:59.1]} 2. b3 {[%clk 0:02:56.8]}
2... d5 {[%clk 0:02:58.3]} 3. Bb2 {[%clk 0:02:56.8]} 3... dxe4 {[%clk
0:02:58.8]} 4. Nc3 {[%clk 0:02:56.6]} 4... Nf6 {[%clk 0:02:59.5]} 5. Qe2 {[%clk
0:02:56.5]} 5... Be7 {[%clk 0:02:59.7]} 6. O-O-O {[%clk 0:02:49.8]} 6... O-O
{[%clk 0:02:57.9]} 7. f3 {[%clk 0:02:49.7]} 7... a5 {[%clk 0:02:48.2]} 8. a4
{[%clk 0:02:42.4]} 8... c6 {[%clk 0:02:41.7]} 9. fxe4 {[%clk 0:02:41.1]} 9... b5
{[%clk 0:02:42]} 10. e5 {[%clk 0:02:36.5]} 10... Nd5 {[%clk 0:02:40.2]} 11. Nf3
{[%clk 0:02:33.9]} 11... Nd7 {[%clk 0:02:27.4]} 12. Nxd5 {[%clk 0:02:28.8]}
12... cxd5 {[%clk 0:02:21.7]} 13. axb5 {[%clk 0:02:00.6]} 13... a4 {[%clk
0:02:20.9]} 14. Nd4 {[%clk 0:01:52]} 14... Bb7 {[%clk 0:02:13.6]} 15. h4 {[%clk
0:01:32.5]} 15... axb3 {[%clk 0:02:10.8]} 16. Nxb3 {[%clk 0:01:29.6]} 16... Qc7
{[%clk 0:02:05.5]} 17. Rh3 {[%clk 0:01:28.1]} 17... Rfc8 {[%clk 0:02:01.1]} 18.
Rc3 {[%clk 0:01:26.7]} 18... Qb6 {[%clk 0:02:01.5]} 19. Rxc8+ {[%clk 0:01:23.4]}
19... Rxc8 {[%clk 0:02:01.5]} 20. d4 {[%clk 0:01:19.6]} 20... Qa7 {[%clk
0:01:56.4]} 21. Qd2 {[%clk 0:01:02.3]} 21... Qa4 {[%clk 0:01:44.8]} 22. Kb1
{[%clk 0:00:59]} 22... Ra8 {[%clk 0:01:35.4]} 23. Bd3 {[%clk 0:00:44.1]} 23...
Qa2+ {[%clk 0:01:33.7]} 24. Kc1 {[%clk 0:00:43.8]} 24... Nb6 {[%clk 0:01:28.9]}
25. Nc5 {[%clk 0:00:38.3]} 25... Rc8 {[%clk 0:00:55.1]} 26. Qb4 {[%clk
0:00:16.8]} 26... Qa7 {[%clk 0:00:34.4]} 27. Qa3 {[%clk 0:00:12.8]} 27... Qb8
{[%clk 0:00:35]} 28. Kb1 {[%clk 0:00:12]} 28... Nc4 {[%clk 0:00:27.4]} 29. Bxc4
{[%clk 0:00:11.3]} 29... dxc4 {[%clk 0:00:28.3]} 30. Qb4 {[%clk 0:00:10.8]}
30... Bxg2 {[%clk 0:00:25.7]} 31. b6 {[%clk 0:00:09.4]} 31... Bd5 {[%clk
0:00:24.5]} 32. h5 {[%clk 0:00:08.1]} 32... h6 {[%clk 0:00:23.7]} 33. Rg1 {[%clk
0:00:07.1]} 33... Rc6 {[%clk 0:00:23.3]} 34. Qd2 {[%clk 0:00:06.1]} 34... Rxb6
{[%clk 0:00:17.2]} 35. c3 {[%clk 0:00:04.7]} 35... Bg5 {[%clk 0:00:16.4]} 36.
Rxg5 {[%clk 0:00:01.6]} 36... hxg5 {[%clk 0:00:17.3]} 37. Nd7 {[%clk 0:00:01.5]}
37... Be4+ {[%clk 0:00:11.2]} 0-1

[Event "Late-Titled-Tuesday-Blitz-June-25-2024"]
[Site "Chess.com"]
[Date "2024.06.25"]
[Round "4"]
[White "NailBashirli"]
[Black "LoonsDeKoeben"]
[Result "1-0"]
[WhiteElo "2755"]
[BlackElo "2427"]
[TimeControl "180+1"]
[EndTime "14:37:20 PDT"]
[Termination "NailBashirli won on time"]

1. e4 {[%clk 0:01:39.9]} 1... e5 {[%clk 0:02:58.1]} 2. Nf3 {[%clk 0:01:39.8]}
2... Nc6 {[%clk 0:02:58.6]} 3. Bb5 {[%clk 0:01:39.6]} 3... a6 {[%clk 0:02:58.4]}
4. Ba4 {[%clk 0:01:37.9]} 4... Nf6 {[%clk 0:02:58.6]} 5. O-O {[%clk 0:01:38.5]}
5... b5 {[%clk 0:02:58.7]} 6. Bb3 {[%clk 0:01:39]} 6... Bc5 {[%clk 0:02:58.9]}
7. d3 {[%clk 0:01:33]} 7... h6 {[%clk 0:02:43.1]} 8. a4 {[%clk 0:01:29.5]} 8...
Rb8 {[%clk 0:02:41.9]} 9. Nc3 {[%clk 0:01:29.1]} 9... d6 {[%clk 0:02:28.9]} 10.
Be3 {[%clk 0:01:26.7]} 10... Bxe3 {[%clk 0:02:18.9]} 11. fxe3 {[%clk 0:01:26.7]}
11... Na5 {[%clk 0:01:49.2]} 12. Ba2 {[%clk 0:01:24.7]} 12... b4 {[%clk
0:01:35.8]} 13. Nd5 {[%clk 0:01:20.6]} 13... Nxd5 {[%clk 0:01:29.3]} 14. Bxd5
{[%clk 0:01:17.1]} 14... c6 {[%clk 0:01:03.4]} 15. Bxf7+ {[%clk 0:01:15.9]}
15... Kxf7 {[%clk 0:01:03.4]} 16. Nxe5+ {[%clk 0:01:15.8]} 16... Kg8 {[%clk
0:01:00]} 17. Nf7 {[%clk 0:00:53.4]} 17... Qe7 {[%clk 0:00:21]} 18. Qh5 {[%clk
0:00:52.5]} 18... Nb7 {[%clk 0:00:21.2]} 19. Nxh8 {[%clk 0:00:51.9]} 19... Kxh8
{[%clk 0:00:21]} 20. Rf7 {[%clk 0:00:52.4]} 20... Qe8 {[%clk 0:00:15.2]} 21.
Raf1 {[%clk 0:00:52.2]} 21... Be6 {[%clk 0:00:14.8]} 22. Rf8+ {[%clk 0:00:32.1]}
22... Qxf8 {[%clk 0:00:15.1]} 23. Rxf8+ {[%clk 0:00:33]} 23... Rxf8 {[%clk
0:00:15.7]} 24. Qh4 {[%clk 0:00:33.5]} 24... Rf7 {[%clk 0:00:14.4]} 25. e5
{[%clk 0:00:32.5]} 25... dxe5 {[%clk 0:00:13.8]} 26. Qxb4 {[%clk 0:00:33.1]}
26... a5 {[%clk 0:00:11.4]} 27. Qb6 {[%clk 0:00:31.8]} 27... Bd5 {[%clk
0:00:03.6]} 28. e4 {[%clk 0:00:32]} 28... Be6 {[%clk 0:00:03.7]} 29. Qxc6 {[%clk
0:00:32.6]} 29... Re7 {[%clk 0:00:03.3]} 30. h3 {[%clk 0:00:31.1]} 30... Kg8
{[%clk 0:00:02.5]} 31. c3 {[%clk 0:00:30.8]} 31... Kf7 {[%clk 0:00:03.1]} 32. b4
{[%clk 0:00:31.4]} 32... axb4 {[%clk 0:00:03.2]} 33. cxb4 {[%clk 0:00:32.3]}
33... Rd7 {[%clk 0:00:03.9]} 34. a5 {[%clk 0:00:32]} 34... Nd8 {[%clk 0:00:03]}
35. Qc5 {[%clk 0:00:32.1]} 35... Rxd3 {[%clk 0:00:02]} 36. a6 {[%clk 0:00:32.7]}
36... Rd7 {[%clk 0:00:01.6]} 37. a7 {[%clk 0:00:32.6]} 37... Nb7 {[%clk
0:00:01.7]} 38. Qxe5 {[%clk 0:00:29.8]} 38... Rd8 {[%clk 0:00:01.3]} 39. Qc7+
{[%clk 0:00:29.7]} 39... Ke8 {[%clk 0:00:01]} 40. Qxb7 {[%clk 0:00:29.7]} 1-0

[Event "Late-Titled-Tuesday-Blitz-June-25-2024"]
[Site "Chess.com"]
[Date "2024.06.25"]
[Round "4"]
[White "maurovargas01"]
[Black "manitodeplomo"]
[Result "0-1"]
[WhiteElo "1942"]
[BlackElo "2586"]
[TimeControl "180+1"]
[EndTime "14:37:21 PDT"]
[Termination "manitodeplomo won by resignation"]

1. e4 {[%clk 0:03:00]} 1... e6 {[%clk 0:02:57]} 2. Nc3 {[%clk 0:03:00.1]} 2...
c5 {[%clk 0:02:53.1]} 3. d3 {[%clk 0:02:59.2]} 3... Nc6 {[%clk 0:02:52.3]} 4. g3
{[%clk 0:02:57.2]} 4... Nf6 {[%clk 0:02:43.5]} 5. Bg2 {[%clk 0:02:57]} 5... d6
{[%clk 0:02:44]} 6. f4 {[%clk 0:02:57]} 6... Be7 {[%clk 0:02:43.7]} 7. Nf3
{[%clk 0:02:57.3]} 7... O-O {[%clk 0:02:44.2]} 8. O-O {[%clk 0:02:55.4]} 8...
Rb8 {[%clk 0:02:39.5]} 9. Ne2 {[%clk 0:02:54.5]} 9... b5 {[%clk 0:02:38.3]} 10.
c3 {[%clk 0:02:54.6]} 10... a5 {[%clk 0:02:37.4]} 11. h3 {[%clk 0:02:53.3]}
11... b4 {[%clk 0:02:37.3]} 12. Bd2 {[%clk 0:02:47.9]} 12... Ba6 {[%clk
0:02:35]} 13. Nc1 {[%clk 0:02:42.5]} 13... d5 {[%clk 0:02:17.4]} 14. e5 {[%clk
0:02:42]} 14... Nd7 {[%clk 0:02:16.7]} 15. Qe1 {[%clk 0:02:41.6]} 15... bxc3
{[%clk 0:02:10.2]} 16. bxc3 {[%clk 0:02:37.1]} 16... a4 {[%clk 0:02:10.4]} 17.
Rf2 {[%clk 0:02:35]} 17... f6 {[%clk 0:02:00.6]} 18. exf6 {[%clk 0:02:33]} 18...
Rxf6 {[%clk 0:01:57.3]} 19. g4 {[%clk 0:02:19.2]} 19... Nf8 {[%clk 0:01:49.8]}
20. g5 {[%clk 0:02:19.1]} 20... Rf7 {[%clk 0:01:49.6]} 21. h4 {[%clk 0:02:13.5]}
21... Bd6 {[%clk 0:01:47.8]} 22. Ne5 {[%clk 0:01:58.6]} 22... Bxe5 {[%clk
0:01:47]} 23. fxe5 {[%clk 0:01:57.8]} 23... Rxf2 {[%clk 0:01:47.4]} 24. Kxf2
{[%clk 0:01:56.8]} 24... Ng6 {[%clk 0:01:45.8]} 25. d4 {[%clk 0:01:56.4]} 25...
cxd4 {[%clk 0:01:44.3]} 26. cxd4 {[%clk 0:01:55.3]} 26... Nxd4 {[%clk 0:01:43]}
27. Kg3 {[%clk 0:01:42.4]} 27... Nc2 {[%clk 0:01:36.6]} 28. Ba5 {[%clk
0:01:39.9]} 28... Nxe1 {[%clk 0:01:35.1]} 29. Bxd8 {[%clk 0:01:37.6]} 29... Rxd8
{[%clk 0:01:35.4]} 30. Bh3 {[%clk 0:01:26.9]} 30... Nxe5 {[%clk 0:01:18.3]} 31.
Bxe6+ {[%clk 0:01:24]} 31... Kf8 {[%clk 0:01:18.2]} 32. a3 {[%clk 0:01:21.1]}
32... Ke7 {[%clk 0:01:14.5]} 33. Bh3 {[%clk 0:01:18.7]} 33... Nc2 {[%clk
0:01:10.9]} 34. Ra2 {[%clk 0:01:17.9]} 34... Nd4 {[%clk 0:01:08.6]} 35. Rb2
{[%clk 0:01:14.6]} 35... Ndc6 {[%clk 0:01:01.2]} 36. Rb6 {[%clk 0:01:14]} 36...
Bc4 {[%clk 0:00:59.3]} 37. Rb7+ {[%clk 0:01:10.3]} 37... Kd6 {[%clk 0:00:58]}
38. Rxg7 {[%clk 0:01:04.7]} 38... Rb8 {[%clk 0:00:58.1]} 39. Rxh7 {[%clk
0:01:02.3]} 39... Rb1 {[%clk 0:00:57.6]} 40. Rh6+ {[%clk 0:01:00.5]} 40... Kc5
{[%clk 0:00:57.1]} 41. g6 {[%clk 0:00:51.1]} 41... Nxg6 {[%clk 0:00:56.1]} 42.
Rxg6 {[%clk 0:00:38.3]} 42... Rxc1 {[%clk 0:00:55.4]} 43. Bd7 {[%clk 0:00:37.4]}
43... Ne5 {[%clk 0:00:42.4]} 44. Rg7 {[%clk 0:00:36.9]} 44... Nxd7 {[%clk
0:00:41.7]} 45. Rxd7 {[%clk 0:00:36.7]} 45... Rc3+ {[%clk 0:00:40.9]} 46. Kg4
{[%clk 0:00:35.8]} 46... Rxa3 {[%clk 0:00:41.3]} 47. h5 {[%clk 0:00:35.4]} 47...
Be2+ {[%clk 0:00:39.3]} 48. Kg5 {[%clk 0:00:34.6]} 48... Rg3+ {[%clk 0:00:35.9]}
49. Kh4 {[%clk 0:00:32.8]} 49... Rg4+ {[%clk 0:00:35.3]} 50. Kh3 {[%clk
0:00:31.8]} 50... Rg8 {[%clk 0:00:34.6]} 51. h6 {[%clk 0:00:30.7]} 51... Bg4+
{[%clk 0:00:33.4]} 52. Kh4 {[%clk 0:00:29.4]} 52... Bxd7 {[%clk 0:00:33.4]} 53.
h7 {[%clk 0:00:29]} 53... Rh8 {[%clk 0:00:33.3]} 54. Kg5 {[%clk 0:00:29.9]}
54... Rxh7 {[%clk 0:00:33.3]} 55. Kf6 {[%clk 0:00:30.8]} 55... Bb5 {[%clk
0:00:31.5]} 0-1

[Event "Late-Titled-Tuesday-Blitz-June-25-2024"]
[Site "Chess.com"]
[Date "2024.06.25"]
[Round "4"]
[White "Yurovskykh_Oleksandr"]
[Black "Dedic8"]
[Result "0-1"]
[WhiteElo "2618"]
[BlackElo "2942"]
[TimeControl "180+1"]
[EndTime "14:37:23 PDT"]
[Termination "Dedic8 won on time"]

1. d4 {[%clk 0:02:59.5]} 1... Nf6 {[%clk 0:03:00.2]} 2. Nf3 {[%clk 0:02:59.1]}
2... d5 {[%clk 0:03:00.2]} 3. c3 {[%clk 0:02:59.1]} 3... e6 {[%clk 0:02:58.3]}
4. Bf4 {[%clk 0:02:58.5]} 4... Bd6 {[%clk 0:02:58.7]} 5. e3 {[%clk 0:02:56.5]}
5... O-O {[%clk 0:02:55.5]} 6. Nbd2 {[%clk 0:02:56.1]} 6... Bxf4 {[%clk
0:02:55.5]} 7. exf4 {[%clk 0:02:56.6]} 7... b6 {[%clk 0:02:56.1]} 8. Bd3 {[%clk
0:02:55.6]} 8... c5 {[%clk 0:02:56.6]} 9. O-O {[%clk 0:02:46.2]} 9... Ba6 {[%clk
0:02:55.9]} 10. Bxa6 {[%clk 0:02:45.2]} 10... Nxa6 {[%clk 0:02:56.8]} 11. Ne5
{[%clk 0:02:39.6]} 11... Qd6 {[%clk 0:02:52.6]} 12. Qa4 {[%clk 0:02:36.5]} 12...
Nc7 {[%clk 0:02:52.2]} 13. g3 {[%clk 0:02:28.3]} 13... a5 {[%clk 0:02:52.2]} 14.
Rac1 {[%clk 0:02:23.3]} 14... b5 {[%clk 0:02:52]} 15. Qc2 {[%clk 0:02:21.1]}
15... Rfc8 {[%clk 0:02:48.9]} 16. Nb3 {[%clk 0:02:18.6]} 16... Na6 {[%clk
0:02:34.4]} 17. dxc5 {[%clk 0:02:18.1]} 17... Nxc5 {[%clk 0:02:34.5]} 18. Nxc5
{[%clk 0:02:03.8]} 18... Rxc5 {[%clk 0:02:34.3]} 19. a3 {[%clk 0:02:03.9]} 19...
g6 {[%clk 0:02:14.8]} 20. Qe2 {[%clk 0:01:57.6]} 20... Rac8 {[%clk 0:02:03]} 21.
Rcd1 {[%clk 0:01:53.4]} 21... Qb6 {[%clk 0:01:51.6]} 22. Rd4 {[%clk 0:01:48.4]}
22... Qb7 {[%clk 0:01:40.6]} 23. h4 {[%clk 0:01:46.7]} 23... h5 {[%clk
0:01:38.6]} 24. Kh2 {[%clk 0:01:25.2]} 24... Kg7 {[%clk 0:01:38.4]} 25. f3
{[%clk 0:01:13.2]} 25... Qe7 {[%clk 0:01:05.3]} 26. Kh3 {[%clk 0:01:09.6]} 26...
Nd7 {[%clk 0:01:04.9]} 27. Re1 {[%clk 0:01:00]} 27... Nxe5 {[%clk 0:01:03.5]}
28. Qxe5+ {[%clk 0:01:00.1]} 28... Qf6 {[%clk 0:01:03.6]} 29. g4 {[%clk
0:00:32.7]} 29... Rc4 {[%clk 0:00:52.2]} 30. f5 {[%clk 0:00:20.3]} 30... Qxe5
{[%clk 0:00:49.4]} 31. Rxe5 {[%clk 0:00:20.9]} 31... Kf6 {[%clk 0:00:44.1]} 32.
Re2 {[%clk 0:00:04.1]} 32... gxf5 {[%clk 0:00:44]} 33. gxf5 {[%clk 0:00:03.9]}
33... Kxf5 {[%clk 0:00:44.5]} 34. Kg3 {[%clk 0:00:03.1]} 34... Rxd4 {[%clk
0:00:42.4]} 35. cxd4 {[%clk 0:00:04]} 35... f6 {[%clk 0:00:42.4]} 36. Kg2 {[%clk
0:00:04.1]} 36... Rc4 {[%clk 0:00:42.5]} 37. Rd2 {[%clk 0:00:04.3]} 37... Kf4
{[%clk 0:00:41.8]} 38. Kf2 {[%clk 0:00:04.7]} 38... b4 {[%clk 0:00:39.6]} 39.
axb4 {[%clk 0:00:05.6]} 39... axb4 {[%clk 0:00:40.5]} 40. Ke2 {[%clk 0:00:06.2]}
40... Kg3 {[%clk 0:00:30.9]} 41. Ke3 {[%clk 0:00:06.7]} 41... Kxh4 {[%clk
0:00:26.4]} 42. Kf4 {[%clk 0:00:06.6]} 42... Rxd4+ {[%clk 0:00:22.1]} 43. Rxd4
{[%clk 0:00:04.1]} 43... e5+ {[%clk 0:00:22.6]} 0-1

[Event "Late-Titled-Tuesday-Blitz-June-25-2024"]
[Site "Chess.com"]
[Date "2024.06.25"]
[Round "4"]
[White "Yaacovn"]
[Black "Charodej1"]
[Result "1-0"]
[WhiteElo "2691"]
[BlackElo "2482"]
[TimeControl "180+1"]
[EndTime "14:37:23 PDT"]
[Termination "Yaacovn won by resignation"]

1. d4 {[%clk 0:02:38.9]} 1... Nf6 {[%clk 0:02:58.5]} 2. e3 {[%clk 0:02:38.7]}
2... g6 {[%clk 0:02:54.8]} 3. Nf3 {[%clk 0:02:38.3]} 3... Bg7 {[%clk 0:02:54.9]}
4. Be2 {[%clk 0:02:39.2]} 4... O-O {[%clk 0:02:55.3]} 5. O-O {[%clk 0:02:40.1]}
5... d6 {[%clk 0:02:53]} 6. b3 {[%clk 0:02:40.3]} 6... c5 {[%clk 0:02:52.8]} 7.
Bb2 {[%clk 0:02:40.5]} 7... Nc6 {[%clk 0:02:49.4]} 8. d5 {[%clk 0:02:40]} 8...
Nb8 {[%clk 0:02:37.4]} 9. c4 {[%clk 0:02:39.7]} 9... e6 {[%clk 0:02:33.1]} 10.
dxe6 {[%clk 0:02:39.4]} 10... Bxe6 {[%clk 0:02:29.8]} 11. Nc3 {[%clk 0:02:39.6]}
11... d5 {[%clk 0:02:27.1]} 12. Ng5 {[%clk 0:02:39.4]} 12... Ne4 {[%clk
0:02:08.1]} 13. Nxe6 {[%clk 0:02:02.9]} 13... Nxc3 {[%clk 0:01:29.2]} 14. Bxc3
{[%clk 0:01:46.2]} 14... fxe6 {[%clk 0:01:27.1]} 15. Bxg7 {[%clk 0:01:46]} 15...
Kxg7 {[%clk 0:01:28]} 16. Bf3 {[%clk 0:01:46.5]} 16... Nc6 {[%clk 0:01:17.3]}
17. cxd5 {[%clk 0:01:46.2]} 17... Ne5 {[%clk 0:01:15.1]} 18. Be4 {[%clk
0:01:44]} 18... Qh4 {[%clk 0:01:08.2]} 19. Qc2 {[%clk 0:01:40.8]} 19... Rae8
{[%clk 0:00:44.3]} 20. h3 {[%clk 0:01:06.2]} 20... exd5 {[%clk 0:00:22.5]} 21.
Bxd5 {[%clk 0:01:07.1]} 21... Rf5 {[%clk 0:00:16.6]} 22. f4 {[%clk 0:00:39.1]}
22... Ng4 {[%clk 0:00:13.2]} 23. hxg4 {[%clk 0:00:25.5]} 23... Rxd5 {[%clk
0:00:13.3]} 24. Qc3+ {[%clk 0:00:19.3]} 24... Kf8 {[%clk 0:00:10.4]} 25. Rad1
{[%clk 0:00:19.5]} 25... Rxd1 {[%clk 0:00:07.4]} 26. Rxd1 {[%clk 0:00:20.4]}
26... Qxg4 {[%clk 0:00:07.4]} 27. Qf6+ {[%clk 0:00:16.2]} 27... Kg8 {[%clk
0:00:07]} 28. Rd8 {[%clk 0:00:16.3]} 28... Rxd8 {[%clk 0:00:06.6]} 29. Qxd8+
{[%clk 0:00:16.4]} 29... Kf7 {[%clk 0:00:07.5]} 30. Qc7+ {[%clk 0:00:16.5]}
30... Kf6 {[%clk 0:00:08.1]} 31. Qxc5 {[%clk 0:00:14.4]} 31... Qd1+ {[%clk
0:00:08.2]} 32. Kh2 {[%clk 0:00:14.1]} 32... Qe2 {[%clk 0:00:07.4]} 33. Qf8+
{[%clk 0:00:12.8]} 33... Ke6 {[%clk 0:00:07]} 34. Qg8+ {[%clk 0:00:12.4]} 34...
Kf5 {[%clk 0:00:07.2]} 35. Qxh7 {[%clk 0:00:08.3]} 35... Qxe3 {[%clk 0:00:07.2]}
36. Qf7+ {[%clk 0:00:07.4]} 36... Kg4 {[%clk 0:00:06.6]} 37. Qxg6+ {[%clk
0:00:07.3]} 37... Kxf4 {[%clk 0:00:07]} 38. Qh6+ {[%clk 0:00:07.5]} 38... Ke4
{[%clk 0:00:07.5]} 39. Qxe3+ {[%clk 0:00:08.4]} 39... Kxe3 {[%clk 0:00:08.4]}
40. Kg3 {[%clk 0:00:08.9]} 1-0

[Event "Late-Titled-Tuesday-Blitz-June-25-2024"]
[Site "Chess.com"]
[Date "2024.06.25"]
[Round "4"]
[White "kasparicy"]
[Black "SimplyDevina"]
[Result "0-1"]
[WhiteElo "2477"]
[BlackElo "2336"]
[TimeControl "180+1"]
[EndTime "14:37:23 PDT"]
[Termination "SimplyDevina won by resignation"]

1. e4 {[%clk 0:02:39.1]} 1... c6 {[%clk 0:02:56.2]} 2. d4 {[%clk 0:02:38.4]}
2... d5 {[%clk 0:02:52.3]} 3. f3 {[%clk 0:02:39.3]} 3... e6 {[%clk 0:02:50.2]}
4. Nc3 {[%clk 0:02:36.2]} 4... Nf6 {[%clk 0:02:46.3]} 5. e5 {[%clk 0:02:36.1]}
5... Nfd7 {[%clk 0:02:39.2]} 6. f4 {[%clk 0:02:37]} 6... c5 {[%clk 0:02:34.2]}
7. Nf3 {[%clk 0:02:37.9]} 7... Nc6 {[%clk 0:02:32.1]} 8. Be3 {[%clk 0:02:37.9]}
8... cxd4 {[%clk 0:02:29.5]} 9. Nxd4 {[%clk 0:02:37.5]} 9... Nxd4 {[%clk
0:02:28.4]} 10. Bxd4 {[%clk 0:02:37.2]} 10... a6 {[%clk 0:02:28.9]} 11. Bd3
{[%clk 0:02:37.3]} 11... Bc5 {[%clk 0:02:26.6]} 12. Ne2 {[%clk 0:02:35.2]} 12...
Bxd4 {[%clk 0:02:13.7]} 13. Nxd4 {[%clk 0:02:36.1]} 13... Nc5 {[%clk 0:02:11]}
14. c3 {[%clk 0:02:35.1]} 14... Nxd3+ {[%clk 0:01:59.3]} 15. Qxd3 {[%clk
0:02:36]} 15... Qc7 {[%clk 0:01:47.5]} 16. O-O {[%clk 0:02:36.3]} 16... g6
{[%clk 0:01:32.9]} 17. Kh1 {[%clk 0:02:35.8]} 17... Bd7 {[%clk 0:01:30]} 18.
Rac1 {[%clk 0:02:28.8]} 18... Rc8 {[%clk 0:01:12.4]} 19. g4 {[%clk 0:02:05.9]}
19... h5 {[%clk 0:00:53.8]} 20. f5 {[%clk 0:02:04.5]} 20... hxg4 {[%clk
0:00:51]} 21. fxg6 {[%clk 0:01:59.6]} 21... Qxe5 {[%clk 0:00:48.5]} 22. gxf7+
{[%clk 0:01:59.6]} 22... Ke7 {[%clk 0:00:44]} 23. Rc2 {[%clk 0:01:56.9]} 23...
Rh3 {[%clk 0:00:38.2]} 24. Qe2 {[%clk 0:01:47.3]} 24... Qh5 {[%clk 0:00:12.4]}
25. Nf5+ {[%clk 0:01:18.7]} 25... Kf8 {[%clk 0:00:12.1]} 26. Nd4 {[%clk
0:00:55]} 26... e5 {[%clk 0:00:10.4]} 27. Nb3 {[%clk 0:00:25.8]} 27... Bb5
{[%clk 0:00:10.2]} 28. Qf2 {[%clk 0:00:20.2]} 28... Bxf1 {[%clk 0:00:10.1]} 29.
Qxf1 {[%clk 0:00:21.1]} 29... g3 {[%clk 0:00:08.7]} 30. Qg1 {[%clk 0:00:14.8]}
30... Rxh2+ {[%clk 0:00:08]} 31. Rxh2 {[%clk 0:00:14.1]} 31... Qxh2+ {[%clk
0:00:08.4]} 32. Qxh2 {[%clk 0:00:14.8]} 32... gxh2 {[%clk 0:00:08.8]} 33. Na5
{[%clk 0:00:13.9]} 33... Kxf7 {[%clk 0:00:05.5]} 34. Nxb7 {[%clk 0:00:14.4]}
34... Ke6 {[%clk 0:00:05.8]} 35. a4 {[%clk 0:00:13.5]} 35... Rc7 {[%clk
0:00:05.5]} 36. Na5 {[%clk 0:00:13.6]} 36... Rf7 {[%clk 0:00:05.2]} 37. Nb3
{[%clk 0:00:12.2]} 37... Kd6 {[%clk 0:00:04.5]} 38. Kxh2 {[%clk 0:00:08]} 38...
Rf2+ {[%clk 0:00:05]} 39. Kg3 {[%clk 0:00:08.5]} 39... Rxb2 {[%clk 0:00:05.8]}
40. Nc1 {[%clk 0:00:08.7]} 40... Rc2 {[%clk 0:00:05.6]} 0-1